[Event "Titled Tuesday Blitz February 21 Late 2023"]
[White "Stoyanov, Tsvetan"]
[Black "Vachier-Lagrave, Maxime"]
[WhiteFideId "2917173"]
[BlackFideId "623539"]
[WhiteElo "2454"]
[BlackElo "2742"]
[Result "1-0"]
[Round "03"]
[TimeControl "180+2"]
[Date "2023.02.21"]
[WhiteClock "0:00:06"]
[BlackClock "0:00:35"]

1. c4 {[%clk 0:03:00]}  e5 {[%clk 0:02:56]} 2. Nc3 {[%clk 0:03:01]}  Bb4 {[%clk 0:02:51]} 3. Nd5 {[%clk 0:03:00]}  a5 {[%clk 0:02:48]} 4. Nf3 {[%clk 0:02:52]}  d6 {[%clk 0:02:48]} 5. a3 {[%clk 0:02:51]}  Bc5 {[%clk 0:02:47]} 6. e3 {[%clk 0:02:52]}  c6 {[%clk 0:02:46]} 7. d4 {[%clk 0:02:49]}  Ba7 {[%clk 0:02:45]} 8. Nc3 {[%clk 0:02:49]}  Nd7 {[%clk 0:02:44]} 9. Be2 {[%clk 0:02:40]}  Qe7 {[%clk 0:02:38]} 10. b4 {[%clk 0:02:28]}  Ngf6 {[%clk 0:02:29]} 11. Bb2 {[%clk 0:02:27]}  O-O {[%clk 0:02:18]} 12. O-O {[%clk 0:02:15]}  e4 {[%clk 0:02:14]} 13. Nd2 {[%clk 0:02:15]}  d5 {[%clk 0:02:15]} 14. cxd5 {[%clk 0:02:04]}  cxd5 {[%clk 0:02:16]} 15. Qb3 {[%clk 0:02:04]}  Bb8 {[%clk 0:02:12]} 16. Nxd5 {[%clk 0:01:39]}  Nxd5 {[%clk 0:02:13]} 17. Qxd5 {[%clk 0:01:38]}  Nf6 {[%clk 0:02:14]} 18. Qb3 {[%clk 0:01:16]}  Be6 {[%clk 0:02:06]} 19. Qd1 {[%clk 0:01:04]}  Rc8 {[%clk 0:01:49]} 20. b5 {[%clk 0:00:50]}  a4 {[%clk 0:01:35]} 21. Rc1 {[%clk 0:00:47]}  Rxc1 {[%clk 0:01:31]} 22. Qxc1 {[%clk 0:00:47]}  h5 {[%clk 0:01:31]} 23. d5 {[%clk 0:00:36]}  Nxd5 {[%clk 0:01:30]} 24. Nxe4 {[%clk 0:00:28]}  Bxh2+ {[%clk 0:01:19]} 25. Kxh2 {[%clk 0:00:28]}  Qh4+ {[%clk 0:01:17]} 26. Kg1 {[%clk 0:00:29]}  Qxe4 {[%clk 0:01:18]} 27. Bf3 {[%clk 0:00:25]}  Qg6 {[%clk 0:01:18]} 28. Rd1 {[%clk 0:00:20]}  Rc8 {[%clk 0:01:18]} 29. Qd2 {[%clk 0:00:16]}  Rc2 {[%clk 0:01:15]} 30. Qd4 {[%clk 0:00:14]}  Nf6 {[%clk 0:01:09]} 31. Bxb7 {[%clk 0:00:13]}  h4 {[%clk 0:01:00]} 32. Rd2 {[%clk 0:00:08]}  Rc4 {[%clk 0:00:53]} 33. Qd8+ {[%clk 0:00:07]}  Kh7 {[%clk 0:00:53]} 34. Bxf6 {[%clk 0:00:06]}  gxf6 {[%clk 0:00:54]} 35. Qf8 {[%clk 0:00:04]}  Qb1+ {[%clk 0:00:44]} 36. Kh2 {[%clk 0:00:04]}  Qxb5 {[%clk 0:00:44]} 37. Rd8 {[%clk 0:00:04]}  Qxb7 {[%clk 0:00:33]} 38. Qh8+ {[%clk 0:00:04]}  Kg6 {[%clk 0:00:34]} 39. Rg8+ {[%clk 0:00:05]}  Kf5 {[%clk 0:00:34]} 40. Qh5+ {[%clk 0:00:05]}  Ke4 {[%clk 0:00:35]} 41. Qf3+ {[%clk 0:00:05]}  Kd3 {[%clk 0:00:35]} 42. Qxb7 {[%clk 0:00:06]} 1-0


[Site "https://www.chess.com"]

[Event "Titled Tuesday Blitz February 21 Late 2023"]
[White "Bilych, Olexiy"]
[Black "Paravyan, David"]
[WhiteFideId "14156504"]
[BlackFideId "4194985"]
[WhiteElo "2441"]
[BlackElo "2601"]
[Result "0-1"]
[Round "03"]
[TimeControl "180+2"]
[Date "2023.02.21"]
[WhiteClock "0:00:38"]
[BlackClock "0:01:31"]

1. d4 {[%clk 0:03:00]}  Nf6 {[%clk 0:02:59]} 2. c4 {[%clk 0:03:01]}  g6 {[%clk 0:02:59]} 3. Nc3 {[%clk 0:03:01]}  d5 {[%clk 0:03:00]} 4. cxd5 {[%clk 0:03:02]}  Nxd5 {[%clk 0:03:00]} 5. e4 {[%clk 0:03:03]}  Nxc3 {[%clk 0:03:00]} 6. bxc3 {[%clk 0:03:04]}  Bg7 {[%clk 0:03:01]} 7. Bc4 {[%clk 0:03:05]}  c5 {[%clk 0:03:00]} 8. Ne2 {[%clk 0:03:05]}  O-O {[%clk 0:02:59]} 9. Be3 {[%clk 0:03:05]}  Nc6 {[%clk 0:02:59]} 10. O-O {[%clk 0:03:06]}  b6 {[%clk 0:02:59]} 11. Rc1 {[%clk 0:03:04]}  Bb7 {[%clk 0:02:58]} 12. Bb5 {[%clk 0:03:02]}  Rc8 {[%clk 0:02:51]} 13. Qd2 {[%clk 0:03:02]}  Qd6 {[%clk 0:02:51]} 14. f4 {[%clk 0:02:47]}  cxd4 {[%clk 0:02:44]} 15. cxd4 {[%clk 0:02:44]}  Na5 {[%clk 0:02:45]} 16. Bd3 {[%clk 0:02:35]}  Rfd8 {[%clk 0:02:25]} 17. f5 {[%clk 0:01:46]}  Rxc1 {[%clk 0:02:14]} 18. Qxc1 {[%clk 0:01:45]}  Rc8 {[%clk 0:02:11]} 19. Qb1 {[%clk 0:01:16]}  Nc4 {[%clk 0:02:08]} 20. e5 {[%clk 0:01:02]}  Qc6 {[%clk 0:02:01]} 21. d5 {[%clk 0:00:53]}  Qxd5 {[%clk 0:02:00]} 22. Nf4 {[%clk 0:00:53]}  Qxe5 {[%clk 0:01:59]} 23. Bc1 {[%clk 0:00:51]}  Ne3 {[%clk 0:01:51]} 24. Rf2 {[%clk 0:00:47]}  Nxf5 {[%clk 0:01:48]} 25. Bb2 {[%clk 0:00:45]}  Nd4 {[%clk 0:01:38]} 26. Qf1 {[%clk 0:00:38]}  Nf3+ {[%clk 0:01:31]} 0-1


[Site "https://www.chess.com"]

[Event "Titled Tuesday Blitz February 21 Late 2023"]
[White "Oganian, Miran"]
[Black "Sarana, Alexey"]
[WhiteFideId "4122488"]
[BlackFideId "24133795"]
[WhiteElo "2439"]
[BlackElo "2685"]
[Result "1-0"]
[Round "03"]
[TimeControl "180+2"]
[Date "2023.02.21"]
[WhiteClock "0:00:10"]
[BlackClock "0:00:02"]

1. e4 {[%clk 0:03:00]}  e5 {[%clk 0:02:57]} 2. Nf3 {[%clk 0:03:00]}  Nc6 {[%clk 0:02:57]} 3. Nc3 {[%clk 0:03:00]}  Nf6 {[%clk 0:02:58]} 4. d4 {[%clk 0:03:00]}  exd4 {[%clk 0:02:57]} 5. Nxd4 {[%clk 0:03:01]}  Bb4 {[%clk 0:02:57]} 6. Nxc6 {[%clk 0:03:00]}  bxc6 {[%clk 0:02:58]} 7. Bd3 {[%clk 0:03:01]}  d5 {[%clk 0:02:58]} 8. exd5 {[%clk 0:03:02]}  cxd5 {[%clk 0:02:59]} 9. O-O {[%clk 0:03:02]}  O-O {[%clk 0:03:00]} 10. h3 {[%clk 0:03:03]}  c5 {[%clk 0:02:57]} 11. Qf3 {[%clk 0:02:56]}  Be6 {[%clk 0:02:18]} 12. Bg5 {[%clk 0:02:46]}  c4 {[%clk 0:02:09]} 13. Bf5 {[%clk 0:02:45]}  Bxc3 {[%clk 0:02:05]} 14. bxc3 {[%clk 0:02:43]}  h6 {[%clk 0:01:59]} 15. Bh4 {[%clk 0:02:41]}  Qd7 {[%clk 0:01:36]} 16. Bxf6 {[%clk 0:02:27]}  Bxf5 {[%clk 0:01:36]} 17. Qg3 {[%clk 0:02:21]}  Bg6 {[%clk 0:01:36]} 18. Bd4 {[%clk 0:02:19]}  Kh7 {[%clk 0:01:34]} 19. Rae1 {[%clk 0:02:16]}  Rfe8 {[%clk 0:01:33]} 20. Kh2 {[%clk 0:02:08]}  f6 {[%clk 0:01:32]} 21. Rxe8 {[%clk 0:01:04]}  Rxe8 {[%clk 0:01:32]} 22. Rb1 {[%clk 0:01:03]}  Bxc2 {[%clk 0:01:17]} 23. Rb8 {[%clk 0:01:01]}  Re6 {[%clk 0:00:39]} 24. Ra8 {[%clk 0:00:57]}  Ra6 {[%clk 0:00:39]} 25. Qb8 {[%clk 0:00:53]}  Rxa2 {[%clk 0:00:36]} 26. Bxf6 {[%clk 0:00:45]}  Be4 {[%clk 0:00:22]} 27. Qh8+ {[%clk 0:00:41]}  Kg6 {[%clk 0:00:22]} 28. Bxg7 {[%clk 0:00:42]}  Qxg7 {[%clk 0:00:03]} 29. Rg8 {[%clk 0:00:41]}  Qxg8 {[%clk 0:00:03]} 30. Qxg8+ {[%clk 0:00:42]}  Kf6 {[%clk 0:00:04]} 31. Qf8+ {[%clk 0:00:40]}  Kg6 {[%clk 0:00:04]} 32. f3 {[%clk 0:00:35]}  Bd3 {[%clk 0:00:04]} 33. Qd6+ {[%clk 0:00:31]}  Kg7 {[%clk 0:00:04]} 34. Qe5+ {[%clk 0:00:30]}  Kg6 {[%clk 0:00:04]} 35. f4 {[%clk 0:00:19]}  a5 {[%clk 0:00:04]} 36. Qe6+ {[%clk 0:00:16]}  Kg7 {[%clk 0:00:05]} 37. f5 {[%clk 0:00:16]}  Be4 {[%clk 0:00:04]} 38. f6+ {[%clk 0:00:13]}  Kg6 {[%clk 0:00:04]} 39. f7+ {[%clk 0:00:12]}  Kg7 {[%clk 0:00:04]} 40. Kg3 {[%clk 0:00:12]}  Rxg2+ {[%clk 0:00:04]} 41. Kh4 {[%clk 0:00:12]}  Rf2 {[%clk 0:00:02]} 42. Qe5+ {[%clk 0:00:07]}  Kxf7 {[%clk 0:00:02]} 43. Qc7+ {[%clk 0:00:07]}  Kf8 {[%clk 0:00:02]} 44. Qb8+ {[%clk 0:00:07]}  Kf7 {[%clk 0:00:02]} 45. Qa7+ {[%clk 0:00:08]}  Kg6 {[%clk 0:00:02]} 46. Qxf2 {[%clk 0:00:09]}  a4 {[%clk 0:00:02]} 47. Qb6+ {[%clk 0:00:09]}  Kf5 {[%clk 0:00:03]} 48. Qa5 {[%clk 0:00:09]}  Kf4 {[%clk 0:00:02]} 49. Qxa4 {[%clk 0:00:09]}  Ke3 {[%clk 0:00:02]} 50. Qa7+ {[%clk 0:00:09]}  Kd2 {[%clk 0:00:02]} 51. Qd4+ {[%clk 0:00:10]}  Kc2 {[%clk 0:00:03]} 52. Kh5 {[%clk 0:00:10]}  Bf5 {[%clk 0:00:02]} 53. h4 {[%clk 0:00:10]} 1-0


[Site "https://www.chess.com"]

[Event "Titled Tuesday Blitz February 21 Late 2023"]
[White "Golubka, Petro"]
[Black "Deac, Bogdan-Daniel"]
[WhiteFideId "14114224"]
[BlackFideId "1226380"]
[WhiteElo "2371"]
[BlackElo "2700"]
[Result "0-1"]
[Round "03"]
[TimeControl "180+2"]
[Date "2023.02.21"]
[WhiteClock "0:00:09"]
[BlackClock "0:00:19"]

1. e4 {[%clk 0:01:13]}  c6 {[%clk 0:02:58]} 2. d4 {[%clk 0:01:12]}  d5 {[%clk 0:02:59]} 3. exd5 {[%clk 0:01:13]}  cxd5 {[%clk 0:03:00]} 4. c4 {[%clk 0:01:14]}  Nf6 {[%clk 0:03:00]} 5. Nc3 {[%clk 0:01:14]}  e6 {[%clk 0:03:00]} 6. Nf3 {[%clk 0:01:14]}  Bb4 {[%clk 0:03:01]} 7. Bd3 {[%clk 0:01:14]}  dxc4 {[%clk 0:02:53]} 8. Bxc4 {[%clk 0:01:15]}  Nbd7 {[%clk 0:02:53]} 9. O-O {[%clk 0:01:14]}  Nb6 {[%clk 0:02:53]} 10. Bd3 {[%clk 0:01:14]}  O-O {[%clk 0:02:51]} 11. Qe2 {[%clk 0:01:13]}  Bd7 {[%clk 0:02:48]} 12. Ne5 {[%clk 0:01:12]}  Rc8 {[%clk 0:02:43]} 13. Bg5 {[%clk 0:01:12]}  Be7 {[%clk 0:02:34]} 14. Rfd1 {[%clk 0:01:08]}  Bc6 {[%clk 0:02:26]} 15. Rac1 {[%clk 0:01:05]}  g6 {[%clk 0:02:22]} 16. Bh6 {[%clk 0:00:53]}  Re8 {[%clk 0:02:21]} 17. Bb1 {[%clk 0:00:45]}  Nbd5 {[%clk 0:02:14]} 18. h4 {[%clk 0:00:30]}  Nd7 {[%clk 0:01:53]} 19. Nxc6 {[%clk 0:00:28]}  bxc6 {[%clk 0:01:52]} 20. g3 {[%clk 0:00:27]}  N7f6 {[%clk 0:01:45]} 21. Na4 {[%clk 0:00:24]}  Nd7 {[%clk 0:01:41]} 22. Kg2 {[%clk 0:00:22]}  Bf6 {[%clk 0:01:41]} 23. Be4 {[%clk 0:00:21]}  Bg7 {[%clk 0:01:33]} 24. Bg5 {[%clk 0:00:21]}  N7f6 {[%clk 0:01:32]} 25. Bf3 {[%clk 0:00:21]}  h6 {[%clk 0:01:28]} 26. Bd2 {[%clk 0:00:21]}  h5 {[%clk 0:01:28]} 27. Bg5 {[%clk 0:00:20]}  Qa5 {[%clk 0:01:26]} 28. b3 {[%clk 0:00:20]}  Nh7 {[%clk 0:01:21]} 29. Bd2 {[%clk 0:00:18]}  Qd8 {[%clk 0:01:19]} 30. Rc4 {[%clk 0:00:18]}  Nhf6 {[%clk 0:01:09]} 31. Bg5 {[%clk 0:00:18]}  Qd6 {[%clk 0:01:08]} 32. Rdc1 {[%clk 0:00:17]}  Nd7 {[%clk 0:01:08]} 33. Qc2 {[%clk 0:00:16]}  Nb8 {[%clk 0:01:01]} 34. Nc5 {[%clk 0:00:10]}  Qc7 {[%clk 0:00:45]} 35. Nd3 {[%clk 0:00:08]}  Qb6 {[%clk 0:00:40]} 36. Be3 {[%clk 0:00:07]}  Red8 {[%clk 0:00:32]} 37. Bxd5 {[%clk 0:00:07]}  exd5 {[%clk 0:00:20]} 38. Rb4 {[%clk 0:00:07]}  Qc7 {[%clk 0:00:21]} 39. Bf4 {[%clk 0:00:07]}  Qe7 {[%clk 0:00:20]} 40. Bxb8 {[%clk 0:00:07]}  Rxb8 {[%clk 0:00:19]} 41. Rxb8 {[%clk 0:00:08]}  Rxb8 {[%clk 0:00:19]} 42. Qxc6 {[%clk 0:00:09]}  Qe4+ {[%clk 0:00:19]} 0-1


[Site "https://www.chess.com"]

[Event "Titled Tuesday Blitz February 21 Late 2023"]
[White "Nasuta, Grzegorz"]
[Black "Martinez Alcantara, Jose Eduardo"]
[WhiteFideId "1141686"]
[BlackFideId "3805662"]
[WhiteElo "2552"]
[BlackElo "2619"]
[Result "1/2-1/2"]
[Round "03"]
[TimeControl "180+2"]
[Date "2023.02.21"]
[WhiteClock "0:00:12"]
[BlackClock "0:00:33"]

1. e4 {[%clk 0:02:57]}  e5 {[%clk 0:02:57]} 2. Nf3 {[%clk 0:02:57]}  Nf6 {[%clk 0:02:57]} 3. d4 {[%clk 0:02:43]}  Nxe4 {[%clk 0:02:55]} 4. dxe5 {[%clk 0:02:32]}  d5 {[%clk 0:02:54]} 5. Nbd2 {[%clk 0:02:32]}  Qd7 {[%clk 0:02:51]} 6. Be2 {[%clk 0:02:29]}  Be7 {[%clk 0:02:48]} 7. O-O {[%clk 0:02:29]}  Nc6 {[%clk 0:02:46]} 8. c4 {[%clk 0:02:26]}  Nxd2 {[%clk 0:02:41]} 9. Bxd2 {[%clk 0:02:23]}  O-O {[%clk 0:02:36]} 10. h3 {[%clk 0:02:19]}  Qd8 {[%clk 0:02:25]} 11. Bc3 {[%clk 0:02:17]}  Be6 {[%clk 0:02:22]} 12. cxd5 {[%clk 0:02:12]}  Qxd5 {[%clk 0:02:22]} 13. Qa4 {[%clk 0:02:03]}  a6 {[%clk 0:02:08]} 14. Rfd1 {[%clk 0:01:59]}  Qc5 {[%clk 0:02:03]} 15. Qe4 {[%clk 0:01:45]}  Rad8 {[%clk 0:01:56]} 16. Bd3 {[%clk 0:01:41]}  g6 {[%clk 0:01:53]} 17. Qf4 {[%clk 0:01:39]}  Nb4 {[%clk 0:01:44]} 18. Be4 {[%clk 0:01:27]}  Nd5 {[%clk 0:01:37]} 19. Bxd5 {[%clk 0:01:25]}  Rxd5 {[%clk 0:01:34]} 20. Ng5 {[%clk 0:01:22]}  Rfd8 {[%clk 0:01:23]} 21. Rxd5 {[%clk 0:01:19]}  Qxd5 {[%clk 0:01:20]} 22. Ne4 {[%clk 0:01:08]}  Kg7 {[%clk 0:01:19]} 23. Nf6 {[%clk 0:01:06]}  Qc4 {[%clk 0:01:14]} 24. Qg5 {[%clk 0:01:01]}  Qe2 {[%clk 0:00:49]} 25. Nh5+ {[%clk 0:00:40]}  Qxh5 {[%clk 0:00:49]} 26. Qxe7 {[%clk 0:00:40]}  Rd1+ {[%clk 0:00:50]} 27. Rxd1 {[%clk 0:00:39]}  Qxd1+ {[%clk 0:00:49]} 28. Kh2 {[%clk 0:00:40]}  Qd7 {[%clk 0:00:44]} 29. Qf6+ {[%clk 0:00:39]}  Kg8 {[%clk 0:00:44]} 30. b3 {[%clk 0:00:30]}  b6 {[%clk 0:00:41]} 31. Bb2 {[%clk 0:00:16]}  Qd2 {[%clk 0:00:40]} 32. Bc1 {[%clk 0:00:10]}  Qxc1 {[%clk 0:00:31]} 33. Qd8+ {[%clk 0:00:10]}  Kg7 {[%clk 0:00:32]} 34. Qf6+ {[%clk 0:00:11]}  Kf8 {[%clk 0:00:32]} 35. Qd8+ {[%clk 0:00:11]}  Kg7 {[%clk 0:00:33]} 36. Qf6+ {[%clk 0:00:12]}  Kf8 {[%clk 0:00:33]} 37. Qd8+ {[%clk 0:00:12]}  Kg7 {[%clk 0:00:33]} 1/2-1/2


[Site "https://www.chess.com"]

[Event "Titled Tuesday Blitz February 21 Late 2023"]
[White "Fedoseev, Vladimir"]
[Black "EREBUNI91"]
[WhiteFideId "24130737"]
[WhiteElo "2680"]
[BlackElo "2753"]
[Result "1-0"]
[Round "03"]
[TimeControl "180+2"]
[Date "2023.02.21"]
[WhiteClock "0:00:19"]
[BlackClock "0:00:13"]

1. e4 {[%clk 0:02:57]}  c6 {[%clk 0:02:56]} 2. Nf3 {[%clk 0:02:54]}  d5 {[%clk 0:02:56]} 3. d3 {[%clk 0:02:55]}  Qc7 {[%clk 0:02:51]} 4. exd5 {[%clk 0:02:52]}  cxd5 {[%clk 0:02:51]} 5. c4 {[%clk 0:02:53]}  Nf6 {[%clk 0:02:08]} 6. Nc3 {[%clk 0:02:53]}  e6 {[%clk 0:01:50]} 7. Nb5 {[%clk 0:02:40]}  Qd8 {[%clk 0:01:39]} 8. Bf4 {[%clk 0:02:39]}  Na6 {[%clk 0:01:37]} 9. Be2 {[%clk 0:02:16]}  Bb4+ {[%clk 0:01:35]} 10. Bd2 {[%clk 0:02:00]}  O-O {[%clk 0:01:33]} 11. O-O {[%clk 0:01:58]}  Bxd2 {[%clk 0:01:30]} 12. Qxd2 {[%clk 0:01:53]}  Bd7 {[%clk 0:01:28]} 13. a4 {[%clk 0:01:38]}  Bc6 {[%clk 0:01:23]} 14. Qe3 {[%clk 0:01:36]}  Qe7 {[%clk 0:01:18]} 15. Nxa7 {[%clk 0:01:26]}  Nb4 {[%clk 0:01:09]} 16. Nxc6 {[%clk 0:01:23]}  bxc6 {[%clk 0:01:06]} 17. Rfc1 {[%clk 0:01:24]}  Rfb8 {[%clk 0:00:59]} 18. d4 {[%clk 0:01:20]}  Ne4 {[%clk 0:00:52]} 19. cxd5 {[%clk 0:01:19]}  cxd5 {[%clk 0:00:51]} 20. Ne5 {[%clk 0:01:13]}  Nd6 {[%clk 0:00:40]} 21. Qd2 {[%clk 0:01:05]}  Ne4 {[%clk 0:00:35]} 22. Qe1 {[%clk 0:00:55]}  Nd6 {[%clk 0:00:33]} 23. Qd2 {[%clk 0:00:37]}  Ne4 {[%clk 0:00:32]} 24. Qd1 {[%clk 0:00:36]}  Nd6 {[%clk 0:00:28]} 25. Bd3 {[%clk 0:00:35]}  f6 {[%clk 0:00:26]} 26. Nf3 {[%clk 0:00:27]}  Nxd3 {[%clk 0:00:22]} 27. Qxd3 {[%clk 0:00:27]}  Rxb2 {[%clk 0:00:22]} 28. Rc2 {[%clk 0:00:28]}  Rxa4 {[%clk 0:00:18]} 29. Re1 {[%clk 0:00:19]}  Rxc2 {[%clk 0:00:15]} 30. Qxc2 {[%clk 0:00:20]}  Ra8 {[%clk 0:00:13]} 31. Qc6 {[%clk 0:00:20]}  Re8 {[%clk 0:00:13]} 32. h3 {[%clk 0:00:20]}  Ne4 {[%clk 0:00:13]} 33. Nh2 {[%clk 0:00:20]}  Qd6 {[%clk 0:00:13]} 34. Qxe8+ {[%clk 0:00:19]} 1-0


[Site "https://www.chess.com"]

[Event "Titled Tuesday Blitz February 21 Late 2023"]
[White "Leiva, Gianmarco"]
[Black "Bluebaum, Matthias"]
[WhiteFideId "3804399"]
[BlackFideId "24651516"]
[WhiteElo "2392"]
[BlackElo "2669"]
[Result "0-1"]
[Round "03"]
[TimeControl "180+2"]
[Date "2023.02.21"]
[WhiteClock "0:00:03"]
[BlackClock "0:00:20"]

1. d4 {[%clk 0:03:00]}  d5 {[%clk 0:03:00]} 2. Nf3 {[%clk 0:03:00]}  e6 {[%clk 0:03:00]} 3. Bf4 {[%clk 0:02:59]}  c5 {[%clk 0:03:00]} 4. e3 {[%clk 0:02:44]}  Nc6 {[%clk 0:02:58]} 5. Nbd2 {[%clk 0:02:42]}  Bd6 {[%clk 0:02:57]} 6. Bg3 {[%clk 0:02:36]}  Bxg3 {[%clk 0:02:57]} 7. hxg3 {[%clk 0:02:36]}  Qb6 {[%clk 0:02:58]} 8. dxc5 {[%clk 0:02:29]}  Qxb2 {[%clk 0:02:58]} 9. Rb1 {[%clk 0:02:21]}  Qc3 {[%clk 0:02:58]} 10. Bb5 {[%clk 0:02:19]}  Nf6 {[%clk 0:02:55]} 11. Nd4 {[%clk 0:02:12]}  Qxc5 {[%clk 0:02:49]} 12. c4 {[%clk 0:02:07]}  O-O {[%clk 0:02:46]} 13. N4b3 {[%clk 0:01:52]}  Qe7 {[%clk 0:02:43]} 14. cxd5 {[%clk 0:01:51]}  exd5 {[%clk 0:02:42]} 15. Rc1 {[%clk 0:01:47]}  d4 {[%clk 0:02:34]} 16. e4 {[%clk 0:01:25]}  Nxe4 {[%clk 0:02:21]} 17. Nxe4 {[%clk 0:01:26]}  Qxe4+ {[%clk 0:02:22]} 18. Kf1 {[%clk 0:01:27]}  Bf5 {[%clk 0:02:19]} 19. Bxc6 {[%clk 0:01:25]}  bxc6 {[%clk 0:02:17]} 20. Qxd4 {[%clk 0:01:26]}  Qe7 {[%clk 0:02:06]} 21. Qc5 {[%clk 0:01:22]}  Qxc5 {[%clk 0:01:48]} 22. Rxc5 {[%clk 0:01:18]}  Be6 {[%clk 0:01:39]} 23. Rh4 {[%clk 0:00:40]}  Bd5 {[%clk 0:01:18]} 24. Ra4 {[%clk 0:00:36]}  Rfb8 {[%clk 0:01:18]} 25. Rca5 {[%clk 0:00:35]}  Rb7 {[%clk 0:01:11]} 26. f3 {[%clk 0:00:34]}  h6 {[%clk 0:01:06]} 27. g4 {[%clk 0:00:34]}  Re7 {[%clk 0:00:56]} 28. Nd4 {[%clk 0:00:31]}  g6 {[%clk 0:00:44]} 29. Kf2 {[%clk 0:00:26]}  Kg7 {[%clk 0:00:41]} 30. Ra3 {[%clk 0:00:26]}  Rc7 {[%clk 0:00:38]} 31. Rc3 {[%clk 0:00:25]}  Rd8 {[%clk 0:00:35]} 32. a3 {[%clk 0:00:17]}  Rdd7 {[%clk 0:00:26]} 33. Rac5 {[%clk 0:00:14]}  Rb7 {[%clk 0:00:25]} 34. Nxc6 {[%clk 0:00:11]}  Rb2+ {[%clk 0:00:25]} 35. Kg3 {[%clk 0:00:11]}  Bxc6 {[%clk 0:00:24]} 36. Rxc6 {[%clk 0:00:11]}  Rdd2 {[%clk 0:00:25]} 37. Kf4 {[%clk 0:00:05]}  g5+ {[%clk 0:00:24]} 38. Ke3 {[%clk 0:00:05]}  Rxg2 {[%clk 0:00:22]} 39. Ra6 {[%clk 0:00:04]}  Rbd2 {[%clk 0:00:22]} 40. Ke4 {[%clk 0:00:03]}  Rd7 {[%clk 0:00:19]} 41. Rcc6 {[%clk 0:00:02]}  Re2+ {[%clk 0:00:19]} 42. Kf5 {[%clk 0:00:03]}  Rd5# {[%clk 0:00:20]} 0-1


[Site "https://www.chess.com"]

[Event "Titled Tuesday Blitz February 21 Late 2023"]
[White "Sjugirov, Sanan"]
[Black "Bjelobrk, Igor"]
[WhiteFideId "4189302"]
[BlackFideId "4300726"]
[WhiteElo "2712"]
[BlackElo "2403"]
[Result "1-0"]
[Round "03"]
[TimeControl "180+2"]
[Date "2023.02.21"]
[WhiteClock "0:01:02"]
[BlackClock "0:00:53"]

1. d4 {[%clk 0:02:56]}  e6 {[%clk 0:02:57]} 2. c4 {[%clk 0:02:57]}  Bb4+ {[%clk 0:02:55]} 3. Bd2 {[%clk 0:02:56]}  Bxd2+ {[%clk 0:02:51]} 4. Qxd2 {[%clk 0:02:56]}  f5 {[%clk 0:02:50]} 5. g3 {[%clk 0:02:47]}  Nf6 {[%clk 0:02:49]} 6. Bg2 {[%clk 0:02:48]}  O-O {[%clk 0:02:49]} 7. Nf3 {[%clk 0:02:44]}  d6 {[%clk 0:02:48]} 8. O-O {[%clk 0:02:41]}  Nc6 {[%clk 0:02:48]} 9. Rd1 {[%clk 0:02:12]}  Qe7 {[%clk 0:02:47]} 10. Nc3 {[%clk 0:02:11]}  e5 {[%clk 0:02:28]} 11. dxe5 {[%clk 0:02:11]}  dxe5 {[%clk 0:02:27]} 12. Nd5 {[%clk 0:02:10]}  Nxd5 {[%clk 0:02:23]} 13. cxd5 {[%clk 0:02:11]}  Nd8 {[%clk 0:02:18]} 14. Qc3 {[%clk 0:02:02]}  e4 {[%clk 0:02:08]} 15. Nd4 {[%clk 0:01:45]}  a6 {[%clk 0:02:02]} 16. Rac1 {[%clk 0:01:45]}  Rf7 {[%clk 0:02:02]} 17. e3 {[%clk 0:01:35]}  Qd6 {[%clk 0:02:01]} 18. Bf1 {[%clk 0:01:22]}  Re7 {[%clk 0:01:59]} 19. Ne6 {[%clk 0:01:14]}  Bd7 {[%clk 0:01:00]} 20. Qxc7 {[%clk 0:01:03]}  Qxc7 {[%clk 0:01:01]} 21. Nxc7 {[%clk 0:01:02]}  Kf8 {[%clk 0:00:53]} 22. Nxa8 {[%clk 0:01:02]} 1-0


[Site "https://www.chess.com"]

[Event "Titled Tuesday Blitz February 21 Late 2023"]
[White "Costachi, Mihnea"]
[Black "Svane, Frederik"]
[WhiteFideId "1217518"]
[BlackFideId "12923044"]
[WhiteElo "2476"]
[BlackElo "2600"]
[Result "0-1"]
[Round "03"]
[TimeControl "180+2"]
[Date "2023.02.21"]
[WhiteClock "0:00:13"]
[BlackClock "0:00:15"]

1. Nc3 {[%clk 0:02:58]}  c5 {[%clk 0:02:56]} 2. Nf3 {[%clk 0:02:57]}  Nc6 {[%clk 0:02:54]} 3. d4 {[%clk 0:02:51]}  cxd4 {[%clk 0:02:55]} 4. Nxd4 {[%clk 0:02:51]}  g6 {[%clk 0:02:55]} 5. g3 {[%clk 0:02:47]}  Bg7 {[%clk 0:02:55]} 6. Nxc6 {[%clk 0:02:44]}  bxc6 {[%clk 0:02:54]} 7. Bg2 {[%clk 0:02:44]}  Nf6 {[%clk 0:02:51]} 8. O-O {[%clk 0:02:44]}  O-O {[%clk 0:02:52]} 9. e4 {[%clk 0:02:45]}  d6 {[%clk 0:02:51]} 10. h3 {[%clk 0:02:42]}  Qc7 {[%clk 0:02:49]} 11. Be3 {[%clk 0:02:41]}  Rb8 {[%clk 0:02:48]} 12. Rb1 {[%clk 0:02:40]}  Nd7 {[%clk 0:02:48]} 13. Kh2 {[%clk 0:02:28]}  Ba6 {[%clk 0:02:46]} 14. Re1 {[%clk 0:02:27]}  Ne5 {[%clk 0:02:38]} 15. b3 {[%clk 0:02:11]}  Nc4 {[%clk 0:02:25]} 16. Bd4 {[%clk 0:02:00]}  e5 {[%clk 0:02:25]} 17. Be3 {[%clk 0:01:51]}  Nxe3 {[%clk 0:02:23]} 18. Rxe3 {[%clk 0:01:52]}  f5 {[%clk 0:02:14]} 19. Bf1 {[%clk 0:01:43]}  Bxf1 {[%clk 0:01:27]} 20. Qxf1 {[%clk 0:01:41]}  fxe4 {[%clk 0:01:28]} 21. Nxe4 {[%clk 0:01:32]}  d5 {[%clk 0:01:28]} 22. Nc5 {[%clk 0:01:32]}  Qd6 {[%clk 0:01:13]} 23. b4 {[%clk 0:01:30]}  e4 {[%clk 0:01:13]} 24. Rd1 {[%clk 0:01:14]}  Rxb4 {[%clk 0:00:37]} 25. Nxe4 {[%clk 0:01:11]}  Qe7 {[%clk 0:00:37]} 26. Nd2 {[%clk 0:00:59]}  Qxe3 {[%clk 0:00:37]} 27. fxe3 {[%clk 0:01:00]}  Rxf1 {[%clk 0:00:37]} 28. Rxf1 {[%clk 0:00:51]}  Rb2 {[%clk 0:00:38]} 29. Rc1 {[%clk 0:00:51]}  Rxa2 {[%clk 0:00:37]} 30. Kg2 {[%clk 0:00:51]}  a5 {[%clk 0:00:37]} 31. Kf3 {[%clk 0:00:49]}  a4 {[%clk 0:00:37]} 32. Ke2 {[%clk 0:00:49]}  a3 {[%clk 0:00:22]} 33. Kd3 {[%clk 0:00:50]}  c5 {[%clk 0:00:21]} 34. c4 {[%clk 0:00:44]}  Rxd2+ {[%clk 0:00:18]} 35. Kxd2 {[%clk 0:00:43]}  dxc4 {[%clk 0:00:13]} 36. Rc2 {[%clk 0:00:11]}  Bb2 {[%clk 0:00:12]} 37. Rxc4 {[%clk 0:00:10]}  a2 {[%clk 0:00:12]} 38. Ra4 {[%clk 0:00:11]}  a1=Q {[%clk 0:00:13]} 39. Rxa1 {[%clk 0:00:11]}  Bxa1 {[%clk 0:00:14]} 40. Kd3 {[%clk 0:00:12]}  Be5 {[%clk 0:00:13]} 41. g4 {[%clk 0:00:11]}  Kf7 {[%clk 0:00:13]} 42. Ke4 {[%clk 0:00:12]}  c4 {[%clk 0:00:12]} 43. Kxe5 {[%clk 0:00:12]}  c3 {[%clk 0:00:13]} 44. Kd4 {[%clk 0:00:13]}  c2 {[%clk 0:00:14]} 45. Kd3 {[%clk 0:00:13]}  c1=Q {[%clk 0:00:15]} 0-1


[Site "https://www.chess.com"]